[Event "*** SCC Grand Prix: Titled Tuesday Blitz"]
[Site "Chess.com"]
[Date "2020.08.25"]
[Round "3"]
[White "timator"]
[Black "Grandmaster2B"]
[Result "0-1"]
[WhiteElo "2653"]
[BlackElo "2423"]
[TimeControl "180+1"]
[EndTime "10:30:45 PDT"]
[Termination "Grandmaster2B won on time"]

1. Nf3 {[%clk 0:03:00.9]} 1... Nf6 {[%clk 0:02:47.3]} 2. b3 {[%clk 0:02:50.3]}
2... c5 {[%clk 0:02:45.4]} 3. Bb2 {[%clk 0:02:43.3]} 3... Nc6 {[%clk 0:02:44.6]}
4. g3 {[%clk 0:02:37.1]} 4... d5 {[%clk 0:02:34.2]} 5. Bg2 {[%clk 0:02:32.3]}
5... Bf5 {[%clk 0:02:31.4]} 6. O-O {[%clk 0:02:31.9]} 6... e6 {[%clk 0:02:30.5]}
7. d3 {[%clk 0:02:32.5]} 7... Be7 {[%clk 0:02:27.5]} 8. Nbd2 {[%clk 0:02:33.4]}
8... O-O {[%clk 0:02:26.2]} 9. Re1 {[%clk 0:02:34.3]} 9... Bg6 {[%clk
0:02:14.9]} 10. e4 {[%clk 0:02:31.5]} 10... b5 {[%clk 0:02:12.6]} 11. Ne5 {[%clk
0:02:31]} 11... Nxe5 {[%clk 0:01:57.3]} 12. Bxe5 {[%clk 0:02:31.9]} 12... d4
{[%clk 0:01:57.3]} 13. Bxf6 {[%clk 0:02:26.9]} 13... gxf6 {[%clk 0:01:51.5]} 14.
h4 {[%clk 0:02:26.5]} 14... h6 {[%clk 0:01:48.8]} 15. h5 {[%clk 0:02:14.1]}
15... Bh7 {[%clk 0:01:48.2]} 16. Qg4+ {[%clk 0:02:10.8]} 16... Kh8 {[%clk
0:01:47.9]} 17. Qf4 {[%clk 0:02:11.7]} 17... Kg7 {[%clk 0:01:35.8]} 18. a4
{[%clk 0:01:41.1]} 18... a6 {[%clk 0:01:31]} 19. Qf3 {[%clk 0:00:59.9]} 19...
Rb8 {[%clk 0:01:15.1]} 20. axb5 {[%clk 0:00:48.9]} 20... axb5 {[%clk 0:01:16]}
21. Ra7 {[%clk 0:00:45.4]} 21... c4 {[%clk 0:00:48.6]} 22. bxc4 {[%clk 0:00:33]}
22... Bc5 {[%clk 0:00:42]} 23. Qg4+ {[%clk 0:00:29.3]} 23... Kh8 {[%clk
0:00:39.6]} 24. Qf4 {[%clk 0:00:29.6]} 24... Bxa7 {[%clk 0:00:35.3]} 25. Qxh6
{[%clk 0:00:29.8]} 25... e5 {[%clk 0:00:24]} 26. Bh3 {[%clk 0:00:28.8]} 26...
Rg8 {[%clk 0:00:16.2]} 27. Ra1 {[%clk 0:00:28.7]} 27... Bc5 {[%clk 0:00:13.4]}
28. Nb3 {[%clk 0:00:26]} 28... Bf8 {[%clk 0:00:12.6]} 29. Qd2 {[%clk 0:00:23.4]}
29... bxc4 {[%clk 0:00:13.1]} 30. dxc4 {[%clk 0:00:23.4]} 30... Bxe4 {[%clk
0:00:10.7]} 31. Ra7 {[%clk 0:00:24]} 31... d3 {[%clk 0:00:09.3]} 32. Nc1 {[%clk
0:00:10.3]} 32... dxc2 {[%clk 0:00:08.3]} 33. Qe3 {[%clk 0:00:10.8]} 33... Qd1+
{[%clk 0:00:07.4]} 34. Bf1 {[%clk 0:00:11.2]} 34... Qf3 {[%clk 0:00:06.5]} 35.
Qxf3 {[%clk 0:00:08.5]} 35... Bxf3 {[%clk 0:00:07.4]} 36. Bd3 {[%clk 0:00:08.7]}
36... e4 {[%clk 0:00:07.7]} 37. Bxc2 {[%clk 0:00:09]} 37... Bh6 {[%clk
0:00:06.7]} 38. Nb3 {[%clk 0:00:08.6]} 38... e3 {[%clk 0:00:06.8]} 39. Rxf7
{[%clk 0:00:07.3]} 39... Bg7 {[%clk 0:00:07.1]} 40. fxe3 {[%clk 0:00:06.3]}
40... Rbd8 {[%clk 0:00:05.6]} 41. Kf2 {[%clk 0:00:06.2]} 41... Bxh5 {[%clk
0:00:04.9]} 42. Ra7 {[%clk 0:00:06.3]} 42... Ra8 {[%clk 0:00:04.9]} 43. Rb7
{[%clk 0:00:05.8]} 43... Ra2 {[%clk 0:00:05.1]} 44. Nd4 {[%clk 0:00:06]} 44...
f5 {[%clk 0:00:04.9]} 45. Nxf5 {[%clk 0:00:01.1]} 45... Rxc2+ {[%clk 0:00:04.4]}
46. Kg1 {[%clk 0:00:01.8]} 46... Rxc4 {[%clk 0:00:04.3]} 0-1

[Event "*** SCC Grand Prix: Titled Tuesday Blitz"]
[Site "Chess.com"]
[Date "2020.08.25"]
[Round "3"]
[White "ajdemipopushi"]
[Black "ErikBlomqvist"]
[Result "0-1"]
[WhiteElo "2295"]
[BlackElo "2515"]
[TimeControl "180+1"]
[EndTime "10:30:46 PDT"]
[Termination "ErikBlomqvist won on time"]

1. Nf3 {[%clk 0:03:00.9]} 1... c5 {[%clk 0:02:58.8]} 2. g3 {[%clk 0:03:01.2]}
2... Nc6 {[%clk 0:02:56.5]} 3. Bg2 {[%clk 0:03:01.4]} 3... g6 {[%clk 0:02:57.1]}
4. c4 {[%clk 0:03:01.1]} 4... Bg7 {[%clk 0:02:57.4]} 5. O-O {[%clk 0:03:01.8]}
5... d6 {[%clk 0:02:57.9]} 6. Nc3 {[%clk 0:03:02.1]} 6... Bf5 {[%clk 0:02:58.1]}
7. d3 {[%clk 0:02:55.9]} 7... Qd7 {[%clk 0:02:57.9]} 8. Re1 {[%clk 0:02:55.8]}
8... Nf6 {[%clk 0:02:42.3]} 9. Rb1 {[%clk 0:02:52.5]} 9... O-O {[%clk
0:02:38.3]} 10. a3 {[%clk 0:02:52]} 10... a5 {[%clk 0:02:36.7]} 11. Bd2 {[%clk
0:02:29.5]} 11... Bh3 {[%clk 0:02:34.8]} 12. Bh1 {[%clk 0:02:29]} 12... Nd4
{[%clk 0:02:21.1]} 13. Ng5 {[%clk 0:02:20.7]} 13... Bg4 {[%clk 0:02:18.5]} 14.
b4 {[%clk 0:02:01.8]} 14... axb4 {[%clk 0:02:18]} 15. axb4 {[%clk 0:02:01.6]}
15... h6 {[%clk 0:01:46]} 16. Nge4 {[%clk 0:01:59]} 16... Nxe4 {[%clk
0:01:44.2]} 17. Nxe4 {[%clk 0:01:58.8]} 17... b6 {[%clk 0:01:41.8]} 18. Nc3
{[%clk 0:01:51.2]} 18... Ra3 {[%clk 0:01:37.4]} 19. Nd5 {[%clk 0:01:29.1]} 19...
Ra2 {[%clk 0:01:22.1]} 20. Nxb6 {[%clk 0:00:57.1]} 20... Qe6 {[%clk 0:01:21.3]}
21. f3 {[%clk 0:00:56.3]} 21... Bh3 {[%clk 0:01:16.7]} 22. Nd5 {[%clk 0:00:52]}
22... Nc2 {[%clk 0:01:08.2]} 23. Nf4 {[%clk 0:00:42.7]} 23... Qd7 {[%clk
0:00:11.4]} 24. Nxh3 {[%clk 0:00:40.3]} 24... Nxe1 {[%clk 0:00:11.6]} 25. Nf4
{[%clk 0:00:24.4]} 25... Nc2 {[%clk 0:00:11.1]} 26. Bg2 {[%clk 0:00:20.3]} 26...
Bd4+ {[%clk 0:00:10.1]} 27. Kh1 {[%clk 0:00:20]} 27... e6 {[%clk 0:00:10.6]} 28.
b5 {[%clk 0:00:19.6]} 28... Ne3 {[%clk 0:00:09.6]} 29. Bxe3 {[%clk 0:00:15.8]}
29... Bxe3 {[%clk 0:00:10.5]} 30. Nh3 {[%clk 0:00:13.7]} 30... g5 {[%clk
0:00:05.9]} 31. f4 {[%clk 0:00:12.9]} 31... g4 {[%clk 0:00:06]} 32. Ng1 {[%clk
0:00:13.2]} 32... f5 {[%clk 0:00:05.4]} 33. Bc6 {[%clk 0:00:12.6]} 33... Qc7
{[%clk 0:00:04.9]} 34. Kg2 {[%clk 0:00:12.9]} 34... Rb8 {[%clk 0:00:05.2]} 35.
h3 {[%clk 0:00:12.7]} 35... h5 {[%clk 0:00:04.9]} 36. hxg4 {[%clk 0:00:12.7]}
36... hxg4 {[%clk 0:00:05.8]} 37. Qb3 {[%clk 0:00:10]} 37... Rd2 {[%clk
0:00:04.9]} 38. Rb2 {[%clk 0:00:09.3]} 38... Rxb2 {[%clk 0:00:03.6]} 39. Qxb2
{[%clk 0:00:09.2]} 39... Qf7 {[%clk 0:00:04.3]} 40. Qa1 {[%clk 0:00:03]} 40...
Bd4 {[%clk 0:00:02.7]} 41. Qa5 {[%clk 0:00:01.8]} 41... Qe7 {[%clk 0:00:01.9]}
42. Qa6 {[%clk 0:00:01.4]} 42... Qc7 {[%clk 0:00:02]} 0-1

[Event "*** SCC Grand Prix: Titled Tuesday Blitz"]
[Site "Chess.com"]
[Date "2020.08.25"]
[Round "3"]
[White "zmeeed67"]
[Black "rududuyk"]
[Result "0-1"]
[WhiteElo "2449"]
[BlackElo "2157"]
[TimeControl "180+1"]
[EndTime "10:30:46 PDT"]
[Termination "rududuyk won by resignation"]

1. e4 {[%clk 0:03:00.9]} 1... e6 {[%clk 0:02:59.6]} 2. Nf3 {[%clk 0:03:00.6]}
2... d5 {[%clk 0:02:56.2]} 3. e5 {[%clk 0:03:00.7]} 3... c5 {[%clk 0:02:55.1]}
4. b4 {[%clk 0:03:00.7]} 4... c4 {[%clk 0:02:55]} 5. a3 {[%clk 0:02:59.1]} 5...
a5 {[%clk 0:02:53.5]} 6. b5 {[%clk 0:02:58.5]} 6... Nd7 {[%clk 0:02:38.5]} 7. a4
{[%clk 0:02:54.9]} 7... Qc7 {[%clk 0:02:32.6]} 8. d4 {[%clk 0:02:51]} 8... cxd3
{[%clk 0:02:30.3]} 9. cxd3 {[%clk 0:02:48.9]} 9... Nxe5 {[%clk 0:02:24.9]} 10.
Bb2 {[%clk 0:02:38.5]} 10... Nxf3+ {[%clk 0:01:57.7]} 11. Qxf3 {[%clk
0:02:23.9]} 11... Bb4+ {[%clk 0:01:53.5]} 12. Nd2 {[%clk 0:02:21.4]} 12... Qc2
{[%clk 0:01:42.3]} 13. Bc1 {[%clk 0:02:21.1]} 13... Bc3 {[%clk 0:01:20.9]} 14.
Rb1 {[%clk 0:01:40.8]} 14... Qxb1 {[%clk 0:01:18.5]} 15. Qd1 {[%clk 0:01:35]}
15... Bxd2+ {[%clk 0:01:14.4]} 16. Qxd2 {[%clk 0:01:33]} 16... Qb4 {[%clk
0:01:12.6]} 17. Be2 {[%clk 0:01:30.7]} 17... Nf6 {[%clk 0:01:11.2]} 18. O-O
{[%clk 0:01:26.6]} 18... Qxd2 {[%clk 0:01:11.4]} 19. Bxd2 {[%clk 0:01:26.6]}
19... O-O {[%clk 0:01:11.5]} 20. Rc1 {[%clk 0:01:24.8]} 20... b6 {[%clk
0:01:09.2]} 21. Bf4 {[%clk 0:01:19.4]} 21... Bd7 {[%clk 0:01:03.2]} 22. Be3
{[%clk 0:01:01]} 22... Rfc8 {[%clk 0:01:01]} 23. Re1 {[%clk 0:00:58]} 23... Rab8
{[%clk 0:00:56.6]} 24. f4 {[%clk 0:00:56.5]} 24... Rc2 {[%clk 0:00:55.1]} 25. g4
{[%clk 0:00:55.9]} 25... Ra2 {[%clk 0:00:47.5]} 26. g5 {[%clk 0:00:55.4]} 26...
Ne8 {[%clk 0:00:46.2]} 27. Bd1 {[%clk 0:00:52]} 27... Nd6 {[%clk 0:00:44.3]} 28.
Bb3 {[%clk 0:00:45.3]} 28... Rb2 {[%clk 0:00:43.4]} 29. Bd1 {[%clk 0:00:42.6]}
29... Nf5 {[%clk 0:00:42.3]} 30. Bf2 {[%clk 0:00:42.7]} 30... h6 {[%clk
0:00:35.9]} 31. h4 {[%clk 0:00:41.6]} 31... hxg5 {[%clk 0:00:34.6]} 32. fxg5
{[%clk 0:00:41.6]} 32... f6 {[%clk 0:00:32.3]} 33. g6 {[%clk 0:00:38.4]} 33...
e5 {[%clk 0:00:31.4]} 34. h5 {[%clk 0:00:38.5]} 34... d4 {[%clk 0:00:30.4]} 35.
Bg4 {[%clk 0:00:36.1]} 35... Rd8 {[%clk 0:00:26.6]} 36. Rf1 {[%clk 0:00:33]}
36... Nh6 {[%clk 0:00:25.3]} 37. Bd1 {[%clk 0:00:32]} 37... Be6 {[%clk
0:00:24.6]} 38. Bh4 {[%clk 0:00:29.9]} 38... Nf5 {[%clk 0:00:18]} 39. Bg4 {[%clk
0:00:26.7]} 39... Nxh4 {[%clk 0:00:14.5]} 40. Bxe6+ {[%clk 0:00:26.4]} 40... Kh8
{[%clk 0:00:14.7]} 41. h6 {[%clk 0:00:26.9]} 41... Rg2+ {[%clk 0:00:13.5]} 42.
Kh1 {[%clk 0:00:26.8]} 42... Rxg6 {[%clk 0:00:14.3]} 43. hxg7+ {[%clk
0:00:18.4]} 43... Kxg7 {[%clk 0:00:15.2]} 44. Kh2 {[%clk 0:00:17.2]} 44... Rh8
{[%clk 0:00:15.4]} 45. Bh3 {[%clk 0:00:16.3]} 45... Rg5 {[%clk 0:00:12.5]} 46.
Rc1 {[%clk 0:00:14.7]} 46... Ng6 {[%clk 0:00:12.3]} 47. Rc7+ {[%clk 0:00:14.5]}
47... Kh6 {[%clk 0:00:12.5]} 48. Rf7 {[%clk 0:00:12.7]} 48... Nf4 {[%clk
0:00:12.6]} 49. Bf1 {[%clk 0:00:11]} 49... Kg6+ {[%clk 0:00:12.7]} 0-1

[Event "*** SCC Grand Prix: Titled Tuesday Blitz"]
[Site "Chess.com"]
[Date "2020.08.25"]
[Round "3"]
[White "Ermito2020"]
[Black "Beca95"]
[Result "1/2-1/2"]
[WhiteElo "2633"]
[BlackElo "2868"]
[TimeControl "180+1"]
[EndTime "10:30:47 PDT"]
[Termination "Game drawn - insufficient material"]

1. e4 {[%clk 0:03:00.9]} 1... e6 {[%clk 0:02:58.9]} 2. d4 {[%clk 0:03:00.3]}
2... d5 {[%clk 0:02:59.5]} 3. Nc3 {[%clk 0:03:00.6]} 3... Bb4 {[%clk 0:02:58.4]}
4. e5 {[%clk 0:03:00.3]} 4... c5 {[%clk 0:02:58.4]} 5. a3 {[%clk 0:03:00.9]}
5... Bxc3+ {[%clk 0:02:58.8]} 6. bxc3 {[%clk 0:03:01.8]} 6... Ne7 {[%clk
0:02:58.9]} 7. Qg4 {[%clk 0:03:01.7]} 7... Qc7 {[%clk 0:02:58.7]} 8. Qxg7 {[%clk
0:03:01.2]} 8... Rg8 {[%clk 0:02:59]} 9. Qxh7 {[%clk 0:03:01.8]} 9... cxd4
{[%clk 0:02:59.3]} 10. Ne2 {[%clk 0:03:02.4]} 10... dxc3 {[%clk 0:02:55.5]} 11.
f4 {[%clk 0:03:01.3]} 11... Nbc6 {[%clk 0:02:55.3]} 12. h4 {[%clk 0:03:00.9]}
12... Bd7 {[%clk 0:02:52.8]} 13. h5 {[%clk 0:03:00.9]} 13... O-O-O {[%clk
0:02:43.4]} 14. Qd3 {[%clk 0:02:59.8]} 14... Nf5 {[%clk 0:02:43]} 15. h6 {[%clk
0:02:55.7]} 15... Rg6 {[%clk 0:02:33.1]} 16. h7 {[%clk 0:02:55.4]} 16... Rh8
{[%clk 0:02:33.1]} 17. Rh3 {[%clk 0:02:04.9]} 17... d4 {[%clk 0:02:24.7]} 18.
Rb1 {[%clk 0:01:53.6]} 18... Rg7 {[%clk 0:01:50.2]} 19. g3 {[%clk 0:01:49.6]}
19... Nce7 {[%clk 0:01:41.4]} 20. Nxd4 {[%clk 0:01:42.7]} 20... Nxd4 {[%clk
0:01:40.8]} 21. Qxd4 {[%clk 0:01:42.8]} 21... Nf5 {[%clk 0:01:41.1]} 22. Qxa7
{[%clk 0:01:41.7]} 22... Bc6 {[%clk 0:01:40.2]} 23. Qa8+ {[%clk 0:01:05]} 23...
Qb8 {[%clk 0:01:39.3]} 24. Qxb8+ {[%clk 0:01:05.1]} 24... Kxb8 {[%clk
0:01:40.2]} 25. Rb3 {[%clk 0:01:04.3]} 25... Rhxh7 {[%clk 0:01:33.8]} 26. Rxh7
{[%clk 0:01:03.6]} 26... Rxh7 {[%clk 0:01:34.7]} 27. Rxc3 {[%clk 0:01:03.9]}
27... Rh1 {[%clk 0:01:34.8]} 28. Kf2 {[%clk 0:01:01.4]} 28... Rh2+ {[%clk
0:01:31.7]} 29. Ke1 {[%clk 0:01:01.2]} 29... Nd4 {[%clk 0:01:30.7]} 30. Bd3
{[%clk 0:00:50.4]} 30... Rh1+ {[%clk 0:01:22]} 31. Kd2 {[%clk 0:00:46]} 31...
Nf3+ {[%clk 0:01:22.2]} 32. Ke3 {[%clk 0:00:46.3]} 32... Rxc1 {[%clk 0:01:19.8]}
33. Rxc6 {[%clk 0:00:46.5]} 33... bxc6 {[%clk 0:01:00.7]} 34. Kxf3 {[%clk
0:00:46.5]} 34... Kc7 {[%clk 0:01:00.7]} 35. g4 {[%clk 0:00:42.5]} 35... Ra1
{[%clk 0:01:00.2]} 36. f5 {[%clk 0:00:39.8]} 36... exf5 {[%clk 0:00:58.4]} 37.
gxf5 {[%clk 0:00:38.8]} 37... Rxa3 {[%clk 0:00:57.4]} 38. Kf4 {[%clk 0:00:39.1]}
38... Kd7 {[%clk 0:00:56]} 39. f6 {[%clk 0:00:36.3]} 39... Ra4+ {[%clk
0:00:55.4]} 40. Kf5 {[%clk 0:00:35.5]} 40... Ke8 {[%clk 0:00:53.1]} 41. Be4
{[%clk 0:00:34.5]} 41... Rc4 {[%clk 0:00:53.1]} 42. Bd3 {[%clk 0:00:30.3]} 42...
Rc3 {[%clk 0:00:53.1]} 43. Be4 {[%clk 0:00:30.1]} 43... Kf8 {[%clk 0:00:53.2]}
44. Bd3 {[%clk 0:00:29.9]} 44... c5 {[%clk 0:00:52.4]} 45. Be4 {[%clk 0:00:28]}
45... Re3 {[%clk 0:00:47]} 46. Bd5 {[%clk 0:00:23.2]} 46... Rc3 {[%clk
0:00:43.8]} 47. Be4 {[%clk 0:00:23.2]} 47... c4 {[%clk 0:00:43.6]} 48. e6 {[%clk
0:00:21.2]} 48... fxe6+ {[%clk 0:00:40.5]} 49. Kxe6 {[%clk 0:00:22.1]} 49... Re3
{[%clk 0:00:39.6]} 50. Ke5 {[%clk 0:00:20]} 50... Ra3 {[%clk 0:00:28.7]} 51. Kd4
{[%clk 0:00:17.2]} 51... Kf7 {[%clk 0:00:27.6]} 52. Bd5+ {[%clk 0:00:16.1]}
52... Kxf6 {[%clk 0:00:27.5]} 53. Bxc4 {[%clk 0:00:17]} 53... Ke7 {[%clk
0:00:25.1]} 54. c3 {[%clk 0:00:16.4]} 54... Kd6 {[%clk 0:00:25.1]} 55. Bd5
{[%clk 0:00:16.6]} 55... Ra1 {[%clk 0:00:23.9]} 56. c4 {[%clk 0:00:15.1]} 56...
Rd1+ {[%clk 0:00:23.8]} 57. Ke3 {[%clk 0:00:15.1]} 57... Ke5 {[%clk 0:00:24.1]}
58. Kf3 {[%clk 0:00:14.7]} 58... Rd3+ {[%clk 0:00:23.2]} 59. Kg4 {[%clk
0:00:13.6]} 59... Rxd5 {[%clk 0:00:23.1]} 60. cxd5 {[%clk 0:00:13.3]} 60... Kxd5
{[%clk 0:00:24]} 1/2-1/2

[Event "*** SCC Grand Prix: Titled Tuesday Blitz"]
[Site "Chess.com"]
[Date "2020.08.25"]
[Round "3"]
[White "chessdjw"]
[Black "Sjakkerntobi"]
[Result "1-0"]
[WhiteElo "2595"]
[BlackElo "2387"]
[TimeControl "180+1"]
[EndTime "10:30:48 PDT"]
[Termination "chessdjw won by checkmate"]

1. d4 {[%clk 0:02:58.6]} 1... e6 {[%clk 0:02:59.4]} 2. c4 {[%clk 0:02:54.2]}
2... d5 {[%clk 0:02:58.6]} 3. Nc3 {[%clk 0:02:53.8]} 3... Nf6 {[%clk 0:02:58.8]}
4. cxd5 {[%clk 0:02:53.2]} 4... exd5 {[%clk 0:02:59.7]} 5. Bg5 {[%clk
0:02:51.2]} 5... c6 {[%clk 0:02:59.8]} 6. e3 {[%clk 0:02:51.4]} 6... Bf5 {[%clk
0:02:58.7]} 7. Qf3 {[%clk 0:02:50.1]} 7... Bg6 {[%clk 0:02:58.4]} 8. Bxf6 {[%clk
0:02:50.4]} 8... Qxf6 {[%clk 0:02:59.3]} 9. Qxf6 {[%clk 0:02:50.7]} 9... gxf6
{[%clk 0:03:00.2]} 10. Nf3 {[%clk 0:02:51.3]} 10... Nd7 {[%clk 0:02:57.3]} 11.
Nh4 {[%clk 0:02:50.5]} 11... Be7 {[%clk 0:02:54.8]} 12. Ne2 {[%clk 0:02:48.7]}
12... f5 {[%clk 0:02:54.2]} 13. g3 {[%clk 0:02:48.7]} 13... Bxh4 {[%clk
0:02:53.1]} 14. gxh4 {[%clk 0:02:48.1]} 14... Nf6 {[%clk 0:02:53.6]} 15. Nf4
{[%clk 0:02:48.6]} 15... Nh5 {[%clk 0:02:54]} 16. Nxh5 {[%clk 0:02:42.2]} 16...
Bxh5 {[%clk 0:02:54.9]} 17. Rg1 {[%clk 0:02:42.7]} 17... Ke7 {[%clk 0:02:49.8]}
18. Bh3 {[%clk 0:02:34.9]} 18... Rhg8 {[%clk 0:02:41.3]} 19. Kd2 {[%clk
0:02:33.2]} 19... Bg4 {[%clk 0:02:40.4]} 20. Bf1 {[%clk 0:02:25.8]} 20... Ke6
{[%clk 0:02:24.7]} 21. Bd3 {[%clk 0:02:25.4]} 21... Rg6 {[%clk 0:02:08.4]} 22.
Rg3 {[%clk 0:02:16.7]} 22... Rag8 {[%clk 0:02:07.5]} 23. b4 {[%clk 0:02:11.8]}
23... f4 {[%clk 0:02:05.3]} 24. exf4 {[%clk 0:02:03.3]} 24... Bf5 {[%clk
0:02:04.1]} 25. Re1+ {[%clk 0:02:01.7]} 25... Kf6 {[%clk 0:02:04.2]} 26. Re5
{[%clk 0:01:56.3]} 26... Bxd3 {[%clk 0:02:03.5]} 27. Kxd3 {[%clk 0:01:57.2]}
27... Rg4 {[%clk 0:01:46.2]} 28. Rg5 {[%clk 0:01:42.4]} 28... R8xg5 {[%clk
0:01:45]} 29. fxg5+ {[%clk 0:01:05.7]} 29... Kf5 {[%clk 0:01:44.4]} 30. Rf3+
{[%clk 0:01:06.4]} 30... Rf4 {[%clk 0:01:42.6]} 31. Ke3 {[%clk 0:01:05.2]} 31...
Rxf3+ {[%clk 0:01:41.2]} 32. Kxf3 {[%clk 0:01:06.1]} 32... b6 {[%clk 0:01:37.9]}
33. h3 {[%clk 0:01:01.2]} 33... Ke6 {[%clk 0:01:35.8]} 34. Kf4 {[%clk 0:00:57]}
34... Kd6 {[%clk 0:01:34]} 35. h5 {[%clk 0:00:54.1]} 35... c5 {[%clk 0:01:33.1]}
36. bxc5+ {[%clk 0:00:52.7]} 36... bxc5 {[%clk 0:01:34]} 37. dxc5+ {[%clk
0:00:52.6]} 37... Kxc5 {[%clk 0:01:34.9]} 38. Ke3 {[%clk 0:00:51.6]} 38... Kc4
{[%clk 0:01:32.3]} 39. Kd2 {[%clk 0:00:50.9]} 39... Kd4 {[%clk 0:01:32.3]} 40.
f3 {[%clk 0:00:47.7]} 40... Ke5 {[%clk 0:01:23.4]} 41. Ke3 {[%clk 0:00:46.5]}
41... Kf5 {[%clk 0:01:21.8]} 42. h4 {[%clk 0:00:43.4]} 42... Ke5 {[%clk
0:01:21.8]} 43. h6 {[%clk 0:00:42.1]} 43... Kf5 {[%clk 0:01:14.9]} 44. Kd4
{[%clk 0:00:40.8]} 44... Kf4 {[%clk 0:01:14.8]} 45. Kxd5 {[%clk 0:00:38.6]}
45... Kxf3 {[%clk 0:01:13.4]} 46. Ke5 {[%clk 0:00:39.2]} 46... Kg4 {[%clk
0:01:12.8]} 47. Kf6 {[%clk 0:00:39.8]} 47... Kxh4 {[%clk 0:01:13.2]} 48. Kxf7
{[%clk 0:00:30.8]} 48... Kxg5 {[%clk 0:01:11.7]} 49. Kg7 {[%clk 0:00:31.3]}
49... a5 {[%clk 0:00:59.5]} 50. Kxh7 {[%clk 0:00:28.2]} 50... Kf6 {[%clk
0:00:57.6]} 51. Kg8 {[%clk 0:00:28.1]} 51... Ke6 {[%clk 0:00:58.2]} 52. h7
{[%clk 0:00:27.2]} 52... Kd5 {[%clk 0:00:59.1]} 53. h8=Q {[%clk 0:00:26.8]}
53... Kc4 {[%clk 0:01:00]} 54. Qb2 {[%clk 0:00:27.2]} 54... Kc5 {[%clk
0:00:59.3]} 55. a4 {[%clk 0:00:26.6]} 55... Kc4 {[%clk 0:01:00.2]} 56. Qb5+
{[%clk 0:00:27]} 56... Kc3 {[%clk 0:01:00.8]} 57. Qxa5+ {[%clk 0:00:27.9]} 57...
Kb3 {[%clk 0:01:01.7]} 58. Qb5+ {[%clk 0:00:28.3]} 58... Kc3 {[%clk 0:01:02]}
59. a5 {[%clk 0:00:28.6]} 59... Kd4 {[%clk 0:01:02.9]} 60. a6 {[%clk 0:00:28.9]}
60... Kc3 {[%clk 0:00:48.2]} 61. a7 {[%clk 0:00:26.5]} 61... Kd4 {[%clk
0:00:49.1]} 62. a8=Q {[%clk 0:00:25.9]} 62... Ke3 {[%clk 0:00:50]} 63. Qad5
{[%clk 0:00:24.1]} 63... Kf4 {[%clk 0:00:49.9]} 64. Qf1+ {[%clk 0:00:23.4]}
64... Kg3 {[%clk 0:00:49.1]} 65. Qdg2+ {[%clk 0:00:22]} 65... Kh4 {[%clk
0:00:50]} 66. Qfh1# {[%clk 0:00:22.5]} 1-0

[Event "*** SCC Grand Prix: Titled Tuesday Blitz"]
[Site "Chess.com"]
[Date "2020.08.25"]
[Round "3"]
[White "RobertoJBM"]
[Black "vladislavkovalev"]
[Result "0-1"]
[WhiteElo "2630"]
[BlackElo "2890"]
[TimeControl "180+1"]
[EndTime "10:30:49 PDT"]
[Termination "vladislavkovalev won on time"]

1. d4 {[%clk 0:03:00.9]} 1... Nf6 {[%clk 0:03:00.1]} 2. c4 {[%clk 0:02:59.7]}
2... g6 {[%clk 0:02:59.6]} 3. Nc3 {[%clk 0:02:58.9]} 3... Bg7 {[%clk 0:03:00.3]}
4. e4 {[%clk 0:02:58.4]} 4... d6 {[%clk 0:03:00.8]} 5. f3 {[%clk 0:02:57.5]}
5... O-O {[%clk 0:03:01.3]} 6. Be3 {[%clk 0:02:57.2]} 6... c5 {[%clk 0:03:01.9]}
7. dxc5 {[%clk 0:02:56.4]} 7... dxc5 {[%clk 0:03:02.8]} 8. Qxd8 {[%clk
0:02:56.4]} 8... Rxd8 {[%clk 0:03:03.7]} 9. Bxc5 {[%clk 0:02:57]} 9... Nc6
{[%clk 0:03:03.8]} 10. Nd5 {[%clk 0:02:55.4]} 10... Nd7 {[%clk 0:03:04.3]} 11.
Ba3 {[%clk 0:02:39.6]} 11... e6 {[%clk 0:03:01.8]} 12. Ne3 {[%clk 0:02:22.1]}
12... Nde5 {[%clk 0:02:55.7]} 13. Rd1 {[%clk 0:02:21.3]} 13... Bd7 {[%clk
0:02:47]} 14. Ne2 {[%clk 0:02:17.6]} 14... Bh6 {[%clk 0:02:21.2]} 15. f4 {[%clk
0:01:59.3]} 15... Be8 {[%clk 0:02:21.5]} 16. Bd6 {[%clk 0:01:45.1]} 16... f5
{[%clk 0:01:27.7]} 17. exf5 {[%clk 0:01:00.4]} 17... exf5 {[%clk 0:01:28.1]} 18.
c5 {[%clk 0:00:47]} 18... Nf7 {[%clk 0:01:21.4]} 19. g3 {[%clk 0:00:37]} 19...
Nxd6 {[%clk 0:01:19.5]} 20. cxd6 {[%clk 0:00:36.1]} 20... Bf8 {[%clk 0:01:09.5]}
21. Nc4 {[%clk 0:00:33.2]} 21... b5 {[%clk 0:00:58]} 22. Ne5 {[%clk 0:00:32.6]}
22... Bxd6 {[%clk 0:00:56.5]} 23. Bg2 {[%clk 0:00:27.6]} 23... Bb4+ {[%clk
0:00:51.8]} 24. Nc3 {[%clk 0:00:23.8]} 24... Rxd1+ {[%clk 0:00:47.8]} 25. Kxd1
{[%clk 0:00:24.2]} 25... Rd8+ {[%clk 0:00:46.2]} 26. Kc1 {[%clk 0:00:18.3]}
26... Nxe5 {[%clk 0:00:41.9]} 27. fxe5 {[%clk 0:00:19.2]} 27... Bxc3 {[%clk
0:00:37.4]} 28. bxc3 {[%clk 0:00:19]} 28... Kf7 {[%clk 0:00:38.3]} 29. Rd1
{[%clk 0:00:18.2]} 29... Rxd1+ {[%clk 0:00:37.7]} 30. Kxd1 {[%clk 0:00:19.1]}
30... Ke6 {[%clk 0:00:38.3]} 31. Kd2 {[%clk 0:00:18.7]} 31... Kxe5 {[%clk
0:00:38.9]} 32. Ke3 {[%clk 0:00:19.1]} 32... a5 {[%clk 0:00:33.6]} 33. a3 {[%clk
0:00:19]} 33... Bf7 {[%clk 0:00:32.6]} 34. Bc6 {[%clk 0:00:18.2]} 34... Bc4
{[%clk 0:00:32.1]} 35. h4 {[%clk 0:00:18.6]} 35... h6 {[%clk 0:00:32]} 36. Be8
{[%clk 0:00:15.4]} 36... g5 {[%clk 0:00:32.3]} 37. hxg5 {[%clk 0:00:16.3]} 37...
hxg5 {[%clk 0:00:33.2]} 38. a4 {[%clk 0:00:14.8]} 38... b4 {[%clk 0:00:12.7]}
39. cxb4 {[%clk 0:00:13]} 39... axb4 {[%clk 0:00:13.6]} 40. a5 {[%clk 0:00:10]}
40... b3 {[%clk 0:00:11]} 41. Kd2 {[%clk 0:00:10]} 41... Kd4 {[%clk 0:00:10.8]}
42. Bg6 {[%clk 0:00:06.5]} 42... f4 {[%clk 0:00:10.5]} 43. gxf4 {[%clk
0:00:06.4]} 43... gxf4 {[%clk 0:00:11.4]} 44. Ke1 {[%clk 0:00:02.5]} 44... Ke3
{[%clk 0:00:10.7]} 45. Kd1 {[%clk 0:00:02.8]} 45... f3 {[%clk 0:00:09.9]} 0-1